Cogmind - Beta 17.1 --- EXPLORER MODE // 2026.09.10 @ 21:57:17 Player: profwumbo Result: Destroyed by S-10 Pest with Light Assault Rifle Performance ------------- Evolutions (0) 0 Regions Visited (2) 400 Robots Destroyed (1) 5 Value Destroyed (1) 1 Prototype IDs (0) 0 Alien Tech Used (0) 0 Bonus (0) 0 TOTAL SCORE: 406 Bonus ------- None Cogmind --------- Core Integrity 0/250 Matter 300/300 Energy 99/100 System Corruption 1% Temperature Cool (0) Movement Core (50) Location -10/Mines Parts ------- > --- POWER (1) -------- (None) > --- PROPULSION (3) --- (None) > --- UTILITY (2) ------ (None) > --- WEAPON (2) ------- (None) > --- INVENTORY (5) ---- Light Ion Engine Medium Storage Unit Sensor Array Terrain Scanner Propulsion Shielding Peak State ------------ > --- POWER ------------ (None) > --- PROPULSION ------- (None) > --- UTILITY ---------- Sensor Array > --- WEAPON ----------- (None) > --- INVENTORY -------- Light Ion Engine Medium Storage Unit Terrain Scanner Propulsion Shielding Propulsion Shielding [Rating: 1] Favorites ----------- Power None Propulsion None Utility Sensor Array Device Sensor Array Weapon None Build | -11 -10 -10 ------- Run | Yrd Mat Min Slots Evolved 1 | . 1 . Power . | . . . Propulsion 1 | . 1 . Utility . | . . . Weapon . | . . . Parts Attached 1 | . 1 . Power . | . . . Engine . | . . . Core . | . . . Reactor . | . . . Propulsion . | . . . Treads . | . . . Leg . | . . . Wheel . | . . . Hover . | . . . Flight . | . . . Utility 1 | . 1 . Device 1 | . 1 . Storage . | . . . Processor . | . . . Hackware . | . . . Protection . | . . . Artifact . | . . . Weapon . | . . . Energy Gun . | . . . Energy Cannon . | . . . Ballistic Gun . | . . . Ballistic Cannon . | . . . Launcher . | . . . Special Weapon . | . . . Impact Weapon . | . . . Slashing Weapon . | . . . Piercing Weapon . | . . . Special Melee Weapon . | . . . Unidentified Prototypes . | . . . Parts Lost 1 | . . 1 Power . | . . . Propulsion . | . . . Utility 1 | . . 1 Weapon . | . . . Highest Loss Streak 1 | . . 1 To Critical Strikes . | . . . Average Backups 4 | 3 5 5 Power . | . 1 1 Propulsion . | . . . Utility 3 | 2 4 4 Weapon . | . . . Tool/Special . | . . . Unused Backups 6 | . 1 5 Power 1 | . . 1 Propulsion . | . . . Utility 5 | . 1 4 Weapon . | . . . Tool/Special . | . . . Average Slot Usage (%) 7 | . 3 10 Device 7 | . 3 10 Peak Build Rating 1 | . 1 1 Average Rating . | . . . On Entrance . | . . 1 Avg Prop Armor Cover (%) . | . . . Naked Turns 101 | . 89 12 Heaviest Build 1 | . 1 1 Greatest Support 3 | 3 3 3 Greatest Overweight (x) . | . . . Average Overweight (x) . | . . . Largest Inventory Capacity 5 | 5 5 5 Average Capacity 5 | 5 5 5 Most Carried 5 | 5 5 5 Average Carried 4 | 3 4 5 Final Capacity 5 | 5 5 5 Final Carried 5 | 5 5 5 Class Distribution -------------------- 100% | Hacker-Mutant Dominant Class ---------------- Hacker-Mutant | -10/Materials Hacker-Mutant | -10/Mines Resources | -11 -10 -10 ----------- Run | Yrd Mat Min Matter Collected 191 | 58 133 . Remotely . | . . . Salvage Created 21 | . . 21 Parts . | . . . Haulers Intercepted . | . . . Recyclers Shooed . | . . . Parts Field Recycled . | . . . Retrieved Matter . | . . . Parts Self-Destructed . | . . . Prevented . | . . . Parts Restored . | . . . Kills | -11 -10 -10 ------- Run | Yrd Mat Min Combat Hostiles Destroyed . | . . . Classes Destroyed 1 | . . 1 Worker 1 | . . 1 Best Kill Streak 1 | . . 1 Combat Bots Only . | . . . Max Kills in Single Turn 1 | . . 1 Gunslinging . | . . . Exploded . | . . . Melee . | . . . Uniques/NPCs Destroyed . | . . . Combat | -11 -10 -10 -------- Run | Yrd Mat Min Hostile Shots Fired 48 | . . 48 Missed 18 | . . 18 Hits 30 | . . 30 Projectile 30 | . . 30 Damage Taken 273 | . 68 205 Core 251 | . 67 184 Absorbed by Shields . | . . . Ignored by Resistances 158 | . 38 120 Core Remaining (%) 100 | 100 . . Volleys Fired . | . . . Largest . | . . . Hottest . | . . . Shots Fired . | . . . Gun . | . . . Cannon . | . . . Launcher . | . . . Special . | . . . Kinetic . | . . . Thermal . | . . . Explosive . | . . . Electromagnetic . | . . . Robot Hit Streak . | . . . Robot Miss Streak . | . . . Penetration Max . | . . . Secondary Targets . | . . . Shots Hit Robots . | . . . Core Hits 3 | . . 3 Critical Kills . | . . . Critical Parts Destroyed . | . . . Critical Strikes . | . . . Melee Attacks . | . . . Impact . | . . . Slashing . | . . . Piercing . | . . . Sneak Attacks . | . . . Combat Hostiles . | . . . Follow-up Attacks . | . . . Damage Inflicted 47 | . 3 44 Guns . | . . . Cannons . | . . . Explosions . | . . . Melee . | . . . Ramming 47 | . 3 44 Kinetic . | . . . Thermal . | . . . Explosive . | . . . Electromagnetic . | . . . Impact . | . . . Slashing . | . . . Piercing . | . . . Highest Corruption 1 | . 1 1 Average Corruption 1 | . 1 1 Corruption Purged . | . . . Corruption Blocked . | . . . Effects 1 | . 1 . Matter Fused 1 | . 1 . Overload Shots . | . . . Overflow Damage . | . . . Projectiles . | . . . Explosions . | . . . Melee . | . . . Knockbacks 1 | . . 1 Impact 1 | . . 1 Kinetic . | . . . Secondary . | . . . Self-Inflicted Damage 22 | . 1 21 Shots . | . . . Rammed 9 | . 2 7 Targets Rammed 9 | . 2 7 Kicked . | . . . Crushed . | . . . Highest Temperature . | . . . Average Temperature . | . . . Received Heat Transfer 90 | . . 90 Siege Activations . | . . . Martial Activations . | . . . Shielding Activations . | . . . Robots Disrupted . | . . . Combat Hostiles . | . . . Robots Corrupted . | . . . Combat Hostiles . | . . . Parts Fried . | . . . Impact Corruptions . | . . . Robots Melted . | . . . Combat Hostiles . | . . . Parts Melted . | . . . Heat Transferred . | . . . Parts Sabotaged . | . . . Parts Stolen . | . . . Parts Stripped . | . . . Power Chain Reactions . | . . . Alert | -11 -10 -10 ------- Run | Yrd Mat Min Maximum Alert Level . | . . . Low Security (%) 100 | 100 100 100 Level 1 . | . . . Level 2 . | . . . Level 3 . | . . . Level 4 . | . . . Level 5 . | . . . High Security . | . . . Max Security . | . . . Peak Influence 20 | . 6 20 Initial . | . . . Average . | . . 1 Influence Increases 41 | . 6 35 Destroy 0b10 Robot/NC 5 | . . 5 Successful Hack 6 | . 6 . Lose Combat Pursuer 30 | . . 30 Influence Decreases 41 | . 6 35 Time Decay 31 | . 6 25 Lost Part 10 | . . 10 Squads Dispatched . | . . . Investigation . | . . . Extermination . | . . . Reinforcement . | . . . Assault . | . . . Garrison . | . . . Intercept . | . . . Searches Triggered . | . . . Construction Impeded . | . . . Haulers Reinforced . | . . . Active Scanning Responses . | . . . Cargo Convoy Interrupts . | . . . Stealth | -11 -10 -10 --------- Run | Yrd Mat Min Distress Signals . | . . . Communications Jammed . | . . . Distress Signals . | . . . Times Spotted 8 | . 1 7 Peak Tracking Total 6 | . 1 6 Tactical Retreats 2 | . . 2 Traps | -11 -10 -10 ------- Run | Yrd Mat Min Traps Triggered 3 | . 3 . Indirectly . | . . . Trap Hack Attempts . | . . . Triggered . | . . . Disarmed . | . . . Reprogrammed . | . . . Reused . | . . . Traps Extracted . | . . . Installed . | . . . Triggered . | . . . Machines | -11 -10 -10 ---------- Run | Yrd Mat Min Machines Disabled . | . . . Max in Single Turn . | . . . Machines Repaired . | . . . Machines Dismantled . | . . . Machines Sabotaged . | . . . Overloaded Fab Kills . | . . . Hacking | -11 -10 -10 --------- Run | Yrd Mat Min Machines Accessed 1 | . 1 . Terminals 1 | . 1 . Fabricators . | . . . Repair Stations . | . . . Recycling Units . | . . . Scanalyzers . | . . . Garrison Access . | . . . Total Hacks 1 | . 1 . Successful 1 | . 1 . Failed . | . . . Catastrophic . | . . . Database Lockouts . | . . . Manual 1 | . 1 . Terminals 1 | . 1 . Fabricators . | . . . Repair Stations . | . . . Recycling Units . | . . . Scanalyzers . | . . . Garrison Access . | . . . Terminal Hacks 1 | . 1 . Branch Access Points 1 | . 1 . Fabricator Hacks . | . . . Repair Station Hacks . | . . . Recycling Unit Hacks . | . . . Scanalyzer . | . . . Garrison Access Hacks . | . . . Unauthorized Hacks . | . . . Terminals . | . . . Fabricators . | . . . Repair Stations . | . . . Recycling Units . | . . . Scanalyzers . | . . . Garrison Access . | . . . Data Cores Recovered . | . . . Used . | . . . Hacking Detections 1 | . 1 . Full Trace Events . | . . . Feedback Events . | . . . Feedback Blocked . | . . . Robot Schematics Acquired . | . . . Robots Built . | . . . Authchips . | . . . Time . | . . . Total Robot Build Rating . | . . . Part Schematics Acquired . | . . . Parts Built . | . . . Authchips . | . . . Time . | . . . Total Part Build Rating . | . . . Part Studies Acquired . | . . . Parts Repaired . | . . . Time . | . . . Parts Recycled . | . . . Recycled Matter . | . . . Retrieved Matter . | . . . Retrieved Components . | . . . Parts Scanalyzed . | . . . Part Schematics Acquired . | . . . Parts Damaged . | . . . Bothacking | -11 -10 -10 ------------ Run | Yrd Mat Min Used RIF Installer . | . . . Robots Hacked . | . . . Non-combat . | . . . Combat . | . . . Robot Hacks Applied . | . . . Relay Couplers Released . | . . . Fabnet Peak Effective % . | . . . Robots Rewired . | . . . Allies Hacked . | . . . Hacks Repelled . | . . . Allies | -11 -10 -10 -------- Run | Yrd Mat Min Total Allies 1 | . . 1 Largest Group 1 | . . 1 Highest-Rated Group 31 | . . 31 Highest-Rated Ally 31 | . . 31 Total Orders . | . . . Ally Attacks 4 | . . 4 Total Damage 84 | . . 84 Kills . | . . . Allies Corrupted . | . . . Allies Melted . | . . . Intel | -11 -10 -10 ------- Run | Yrd Mat Min Active Infowar (turns) 174 | . 40 134 Sensors 174 | . 40 134 Robot Analysis Total . | . . . Derelict Logs Recovered . | . . . Drone Launches . | . . . Drone Recoveries . | . . . Exploration | -11 -10 -10 ------------- Run | Yrd Mat Min Turns Passed 300 | 25 129 146 Spaces Moved 539 | 39 247 253 Core 539 | 39 247 253 Treads . | . . . Legs . | . . . Wheels . | . . . Hover . | . . . Flight . | . . . Fastest Speed 50 | 50 50 50 Average Speed 50 | 50 50 50 Slowest Speed 50 | 50 50 50 Overloaded Moves . | . . . Propulsion Burnouts . | . . . Robots Hopped . | . . . Potential Cave-ins . | . . . Cave-ins Triggered . | . . . Exploration Rate (%) 28 | 3 42 41 Regions Visited 2 Branch Regions 1 Pre-discovered Areas . | . . . Known Exits Taken 2 | 1 1 . Unknown Exits Taken . | . . . Scrap Searched 1 | . . 1 Spaces Dug . | . . . Terrain Destroyed . | . . . Melee . | . . . Projectile . | . . . AOE . | . . . Terrain Rammed . | . . . Walls Destroyed . | . . . Machines Disabled . | . . . Actions | -11 -10 -10 --------- Run | Yrd Mat Min Total 566 | 43 251 272 Wait 12 | . . 12 Move 537 | 38 246 253 Hop . | . . . Pick Up 6 | 5 1 . Fast Attach 1 | . 1 . Attach . | . . . Detach . | . . . Swap . | . . . Drop 1 | . 1 . Fire . | . . . Melee . | . . . Ram 9 | . 2 7 Kick . | . . . Crush . | . . . Escape Stasis . | . . . Rewire . | . . . Trap . | . . . Miscellaneous . | . . . Route ------- -11/Scrapyard -10/Materials (discovered 2 exits: *Mat / *Min) -10/Mines History --------- Turn | Location | Event 18 | -11/Scrapyard | Identified exit to Materials 18 | -11/Scrapyard | Discovered exit to Materials (range 15) 26 | -11/Scrapyard | Entered Materials 26 | -10/Materials | Evolved 1 slot: Propulsion x1 27 | -10/Materials | Met a group of wandering Federalists 52 | -10/Materials | Identified exit to Mines 143 | -10/Materials | Identified exit to Materials 143 | -10/Materials | Discovered exit to Materials (range 6) 155 | -10/Materials | Entered Mines 158 | -10/Mines | Received a Mining Laser from a helpful Derelict 197 | -10/Mines | Found a hidden stash of uninstalled traps 242 | -10/Mines | Core integrity fell below 50% 258 | -10/Mines | Core integrity fell below 20% 301 | -10/Mines | Destroyed by S-10 Pest with Light Assault Rifle Last Messages --------------- Found 33 Matter. K-01 Serf collects debris. Slammed into G-34 Mercenary. Slammed into K-01 Serf. K-01 Serf knocked back. T-07 Excavator is excavating. Slammed into S-10 Pest. T-07 Excavator is excavating. Slammed into S-10 Pest. Slammed into G-34 Mercenary. Destabilizing: Core damaged (-7). Slammed into G-34 Mercenary. G-47 Trooper suffers critical hit (Burn). ML-CN0(g) suffers critical hit (Burn). ML-CN0(g) heat spikes uncontrollably. ML-CN0(g) destroyed. Slammed into K-01 Serf. K-01 Serf destroyed. Sensor Array destroyed. S-10 Pest destroyed. Map ----- +----------------------------------------------------+ | ???????????????????#####??????? | | ???????????????????# ???????? | | ???????????????????# ???????? | | ??????????????????## #???????? | | ?????????????????## #???????? | | ?????????????????# ##??????? | | ?????????????????# #??????? | | ?????????????????# ######## | | ?????????????????## | | ??????????????#### | | ??????????????#$ #### # | | ??????????????# ## ## ##??# # | | ?????????????????# #####???# # | | ?????????????????# #???????# # | | ???????????????### #???????# # | | ?????????####??# #???????# # | | ????????## ##?# ####???????# # | | ???????## ### #??????????# # | | ???????# [% #??????????? ? | | ??????## ss## #???????????#? | | ????### ### #????????????? | | ???## ##?# #????????????? | | ???# ##?? ????????????? | | ???# #??? ????????????? | | ???# ##??? ????????????? | | ???## @####???? ????????????? | | ????# #??????? ????????????? | | ????# #??????? ????????????? | | ????# #?????? ???????????? | | ????# #?????? ???????????? | | ????# ?????? ???????????? | | ????# ?????? ???????????? | | ????####?????? #???????????? | | ??????????????# ????????????? | | ??????????????????????????????? | | ??????????????????????????????? | | ??????????????????????????????? | | ??????????????????????????????? | | ??????????????????????????????? | | ??????????????????????????????? | | ??????????????????????????????? | | ??????????????????????????????? | | ??????????????????????????????? | | ??????????????????????????????? | | ??????????????????????????????? | | ??????????????????????????????? | | ??????????????????????????????? | | ??????????????????????????????? | | ??????????????????????????????? | | ??????????????????????????????? | +----------------------------------------------------+ Best States ------------- Heat Dissipation 25 Energy Generation 5 Energy Capacity 100 Matter Stores 300 Matter Capacity 300 Sight Range 16 Robot Scan Range 14 Terrain Scan Density 10 Resistance: KI 35 Resistance: TH 35 Resistance: EX 35 Resistance: EM 35 Resistance: I 35 Resistance: S 35 Resistance: P 35 Evasion (%) 50 Offensive Hacking 20 Item Schematics ----------------- None Robot Schematics ------------------ None Fabricated ------------ Nothing Repaired ---------- Nothing Studied --------- None Alien Tech Used ----------------- None Achievements -------------- None Challenges ------------ None Game ------ Seed UtilitySiegeDecompositor Manual? 0 Play Time 00:06:50 Cumulative 26.8 hours Start 2026.09.10 @ 21:52:11 End 2026.09.10 @ 21:57:17 Sessions 1 Manual Loads 0 Difficulty Explorer Special Mode None Game No. 28 Rogue 20 Adventurer 5 Explorer 3 Win Type - Total 0 Types 0/0/0/0/0/0/0/0/0/0 Lore% 11 Gallery% 17 Achievement% 16 Wizard Run 0 Options --------- Layout 1 ASCII 0 Keyboard 1 Movement Vi Keybinds 0 Fullscreen 1 Font 24/Crisp Map View 50x35 Zoom Use 0% Tactical HUD 0 Map Filters NONE Filters NONE Steam 1 RUN: ea6dc0ae-de30-4175-86de-c56bb25d6937